Cogmind - Beta 14 @@@ ROGUE MODE // 2024.08.08 @ 11:53:49 Player: CatgirlLyra Result: Destroyed by 8X-CY1(R) with Subdweller Machine Gun Performance ------------- Evolutions (0) 0 Regions Visited (3) 600 Robots Destroyed (32) 160 Value Destroyed (813) 813 Prototype IDs (3) 60 Alien Tech Used (0) 0 Bonus (0) 0 TOTAL SCORE: 1633 Bonus ------- None Cogmind --------- Core Integrity 0/250 Matter 107/300 Energy 230/250 System Corruption 0% Temperature Cool (0) Movement Treading (160) Location -10/Subcaves Parts ------- > --- POWER (1) -------- Ion Engine > --- PROPULSION (2) --- Light Treads Light Treads > --- UTILITY (2) ------ Scrap Shield > --- WEAPON (2) ------- Particle Gun Flak Cannon > --- INVENTORY (5) ---- Light Treads Compact Wheel High-capacity Matter Pod (200) Medium Armor Plating Hardlight Generator Peak State ------------ > --- POWER ------------ Light Nuclear Core > --- PROPULSION ------- Light Treads Light Treads > --- UTILITY ---------- Large Storage Unit Medium Armor Plating > --- WEAPON ----------- Particle Gun Assault Rifle > --- INVENTORY -------- Light Ion Engine Light Treads Light Treads Light Treads Wheel Wheel Compact Wheel High-capacity Matter Pod Light Armor Plating Light Armor Plating Medium Armor Plating Medium Armor Plating Medium Armor Plating Shotgun Shotgun [Rating: 13] Favorites ----------- Power Light Ion Engine Engine Light Ion Engine Power Core Light Nuclear Core Propulsion Light Treads Treads Light Treads Wheel Wheel Utility Large Storage Unit Device Improved Terrain Scanner Storage Large Storage Unit Protection Medium Armor Plating Weapon Assault Rifle Energy Gun Particle Gun Ballistic Gun Assault Rifle Ballistic Cannon Flak Cannon Build | -11 -10 -10 -10 ------- Run | Yrd Mat Min Sub Slots Evolved . | . . . . Power . | . . . . Propulsion . | . . . . Utility . | . . . . Weapon . | . . . . Parts Attached 29 | 7 16 1 5 Power 5 | 1 3 . 1 Engine 3 | 1 1 . 1 Core 2 | . 2 . . Reactor . | . . . . Propulsion 7 | 2 4 . 1 Treads 5 | 2 2 . 1 Leg . | . . . . Wheel 2 | . 2 . . Hover . | . . . . Flight . | . . . . Utility 9 | 2 4 . 3 Device 1 | 1 . . . Storage 3 | 1 2 . . Processor . | . . . . Hackware . | . . . . Protection 5 | . 2 . 3 Artifact . | . . . . Weapon 8 | 2 5 1 . Energy Gun 1 | . 1 . . Energy Cannon . | . . . . Ballistic Gun 6 | 2 4 . . Ballistic Cannon 1 | . . 1 . Launcher . | . . . . Special Weapon . | . . . . Impact Weapon . | . . . . Slashing Weapon . | . . . . Piercing Weapon . | . . . . Special Melee Weapon . | . . . . Unidentified Prototypes . | . . . . Parts Lost 9 | . 5 . 4 Power 2 | . 1 . 1 Propulsion 3 | . 2 . 1 Utility 2 | . . . 2 Weapon 2 | . 2 . . Highest Loss Streak 4 | . 3 . 4 To Critical Strikes . | . . . . Average Slot Usage (%) 99 | . 98 100 100 Engine 9 | . 5 14 14 Core 3 | . 8 . . Treads 26 | . 25 28 28 Storage 14 | . 14 14 14 Protection 13 | . 12 14 14 Energy Gun 8 | . 2 14 14 Ballistic Gun 11 | . 25 . . Ballistic Cannon 7 | . . 13 14 Peak Build Rating 13 | 9 13 13 13 Average Rating 11 | 6 9 12 12 On Entrance 8 | . 9 11 13 Naked Turns . | . . . . Heaviest Build 41 | 14 37 39 41 Greatest Support 40 | 40 40 40 40 Greatest Overweight (x) 1 | . . . 1 Average Overweight (x) . | . . . . Largest Inventory Capacity 15 | 8 15 15 15 Average Capacity 13 | 7 11 15 14 Most Carried 15 | 7 15 15 15 Average Carried 12 | 5 9 14 13 Final Capacity 15 | 8 15 15 5 Final Carried 15 | 6 15 15 5 Class Distribution -------------------- 100% | Mutant Dominant Class ---------------- Mutant | -10/Materials Mutant | -10/Mines Mutant | -10/Subcaves Resources | -11 -10 -10 -10 ----------- Run | Yrd Mat Min Sub Matter Collected 1088 | 282 794 7 5 Remotely . | . . . . Salvage Created 1106 | 136 965 . 5 Parts 62 | 3 58 . 1 Haulers Intercepted 2 | . 2 . . Recyclers Shooed 2 | . 2 . . Parts Field Recycled . | . . . . Retrieved Matter . | . . . . Parts Self-Destructed . | . . . . Prevented . | . . . . Kills | -11 -10 -10 -10 ------- Run | Yrd Mat Min Sub Combat Hostiles Destroyed 23 | . 22 . 1 Guns 22 | . 22 . . Cannons 1 | . . . 1 Classes Destroyed 8 | 2 5 . 1 Worker 2 | . 2 . . Tunneler 2 | 2 . . . Hauler 2 | . 2 . . Recycler 1 | 1 . . . Watcher 2 | . 2 . . Swarmer 3 | . 3 . . Grunt 19 | . 19 . . Subdweller 1 | . . . 1 Best Kill Streak 5 | 1 5 . 1 Combat Bots Only 4 | . 4 . 1 Max Kills in Single Turn 2 | 1 2 . 1 Gunslinging . | . . . . Exploded . | . . . . Melee . | . . . . Uniques/NPCs Destroyed . | . . . . Combat | -11 -10 -10 -10 -------- Run | Yrd Mat Min Sub Hostile Shots Fired 169 | . 123 . 46 Missed 38 | . 32 . 6 Damage Taken 1865 | . 1035 . 830 Core 256 | . 131 . 125 Absorbed by Shields . | . . . . Regen/Repaired (Parts) 39 | . 39 . . Core Remaining (%) 100 | 100 . . . Volleys Fired 124 | 13 82 1 28 Largest 2 | 2 2 2 2 Hottest 109 | 40 85 109 109 Shots Fired 246 | 26 162 2 56 Gun 217 | 26 162 1 28 Cannon 29 | . . 1 28 Launcher . | . . . . Special . | . . . . Kinetic 213 | 26 158 1 28 Thermal 33 | . 4 1 28 Explosive . | . . . . Electromagnetic . | . . . . Robot Hit Streak 19 | 9 11 . 19 Robot Miss Streak 4 | 2 4 . 2 Penetration Max . | . . . . Secondary Targets 2 | . 2 . . Max Gunslinging Chain 1 | . 1 . . Shots Hit Robots 184 | 19 113 . 52 Core Hits 60 | 6 50 . 4 Critical Kills 2 | . 2 . . Critical Parts Destroyed . | . . . . Critical Strikes 3 | . 3 . . Burn 1 | . 1 . . Destroy 2 | . 2 . . Melee Attacks . | . . . . Impact . | . . . . Slashing . | . . . . Piercing . | . . . . Sneak Attacks . | . . . . Combat Hostiles . | . . . . Follow-up Attacks . | . . . . Damage Inflicted 1800 | 194 1466 23 117 Guns 1691 | 193 1454 . 44 Cannons 73 | . . . 73 Explosions . | . . . . Melee . | . . . . Ramming 36 | 1 12 23 . Kinetic 1651 | 193 1385 . 73 Thermal 113 | . 69 . 44 Explosive . | . . . . Electromagnetic . | . . . . Impact . | . . . . Slashing . | . . . . Piercing . | . . . . Highest Corruption . | . . . . Average Corruption . | . . . . Corruption Purged . | . . . . Corruption Blocked . | . . . . Overload Shots . | . . . . Overflow Damage . | . . . . Projectiles . | . . . . Explosions . | . . . . Melee . | . . . . Knockbacks 1 | . . . 1 Impact . | . . . . Kinetic 1 | . . . 1 Secondary . | . . . . Self-Inflicted Damage . | . . . . Shots . | . . . . Rammed 10 | 1 2 7 . Targets Rammed 10 | 1 2 7 . Kicked . | . . . . Crushed . | . . . . Highest Temperature 78 | . 78 57 50 Average Temperature 23 | . 23 31 22 Received Heat Transfer 786 | . 552 . 234 Siege Activations . | . . . . Robots Corrupted . | . . . . Combat Hostiles . | . . . . Parts Fried . | . . . . Impact Corruptions . | . . . . Robots Melted . | . . . . Combat Hostiles . | . . . . Parts Melted 3 | . 3 . . Heat Transferred 333 | . 222 . 111 Parts Sabotaged . | . . . . Parts Stolen . | . . . . Parts Stripped . | . . . . Power Chain Reactions . | . . . . Alert | -11 -10 -10 -10 ------- Run | Yrd Mat Min Sub Peak Influence 334 | 15 334 70 . Initial 70 | . 9 70 . Average 110 | 6 224 18 . Maximum Alert Level 1 | . 1 . . Low Security (%) 78 | 100 52 100 . Level 1 21 | . 47 . . Level 2 . | . . . . Level 3 . | . . . . Level 4 . | . . . . Level 5 . | . . . . High Security . | . . . . Max Security . | . . . . Squads Dispatched 6 | . 5 1 . Investigation 5 | . 4 1 . Extermination . | . . . . Reinforcement 1 | . 1 . . Assault . | . . . . Garrison . | . . . . Intercept . | . . . . Searches Triggered . | . . . . Construction Impeded . | . . . . Haulers Reinforced . | . . . . Active Scanning Responses . | . . . . Cargo Convoy Interrupts . | . . . . Stealth | -11 -10 -10 -10 --------- Run | Yrd Mat Min Sub Distress Signals 3 | . 3 . . Communications Jammed . | . . . . Distress Signals . | . . . . Times Spotted 36 | . 34 . 2 Peak Tracking Total 5 | . 5 . 1 Tactical Retreats 3 | . 3 . . Traps | -11 -10 -10 -10 ------- Run | Yrd Mat Min Sub Traps Triggered 4 | . 4 . . Indirectly . | . . . . Trap Hack Attempts . | . . . . Triggered . | . . . . Disarmed . | . . . . Reprogrammed . | . . . . Reused . | . . . . Traps Extracted . | . . . . Installed . | . . . . Triggered . | . . . . Machines | -11 -10 -10 -10 ---------- Run | Yrd Mat Min Sub Machines Disabled . | . . . . Max in Single Turn . | . . . . Machines Repaired . | . . . . Machines Dismantled . | . . . . Machines Sabotaged . | . . . . Overloaded Fab Kills . | . . . . Hacking | -11 -10 -10 -10 --------- Run | Yrd Mat Min Sub Machines Accessed 6 | . 5 1 . Terminals 4 | . 4 . . Fabricators . | . . . . Repair Stations 1 | . 1 . . Recycling Units . | . . . . Scanalyzers . | . . . . Garrison Access . | . . . . Total Hacks 22 | . 21 1 . Successful 12 | . 11 1 . Failed 10 | . 10 . . Catastrophic 2 | . 2 . . Database Lockouts . | . . . . Manual 16 | . 16 . . Terminals 19 | . 19 . . Fabricators . | . . . . Repair Stations 2 | . 2 . . Recycling Units . | . . . . Scanalyzers . | . . . . Garrison Access . | . . . . Terminal Hacks 9 | . 8 1 . Part Schematic 1 | . 1 . . Robot Analysis 4 | . 4 . . Prototype ID Bank 2 | . 2 . . Open Door 1 | . . 1 . Hauler Manifests 1 | . 1 . . Fabricator Hacks . | . . . . Repair Station Hacks 2 | . 2 . . Scan Component 1 | . 1 . . Repair 1 | . 1 . . Recycling Unit Hacks . | . . . . Scanalyzer . | . . . . Garrison Access Hacks . | . . . . Unauthorized Hacks 1 | . 1 . . Terminals 1 | . 1 . . Botnet 1 | . 1 . . Fabricators . | . . . . Repair Stations . | . . . . Recycling Units . | . . . . Scanalyzers . | . . . . Garrison Access . | . . . . Data Cores Recovered . | . . . . Used . | . . . . Hacking Detections 4 | . 4 . . Full Trace Events . | . . . . Feedback Events . | . . . . Feedback Blocked . | . . . . Robot Schematics Acquired . | . . . . Robots Built . | . . . . Authchips . | . . . . Time . | . . . . Total Robot Build Rating . | . . . . Part Schematics Acquired 1 | . 1 . . Parts Built . | . . . . Authchips . | . . . . Time . | . . . . Total Part Build Rating . | . . . . Parts Repaired 1 | . 1 . . Time 38 | . 38 . . Parts Recycled . | . . . . Recycled Matter . | . . . . Retrieved Matter . | . . . . Retrieved Components . | . . . . Parts Scanalyzed . | . . . . Part Schematics Acquired . | . . . . Parts Damaged . | . . . . Bothacking | -11 -10 -10 -10 ------------ Run | Yrd Mat Min Sub Used RIF Installer . | . . . . Robots Hacked . | . . . . Non-combat . | . . . . Combat . | . . . . Robot Hacks Applied . | . . . . Relay Couplers Released . | . . . . Fabnet Peak Effective % . | . . . . Robots Rewired . | . . . . Allies Hacked . | . . . . Hacks Repelled . | . . . . Allies | -11 -10 -10 -10 -------- Run | Yrd Mat Min Sub Total Allies . | . . . . Largest Group . | . . . . Highest-Rated Group . | . . . . Highest-Rated Ally . | . . . . Total Orders . | . . . . Ally Attacks . | . . . . Total Damage . | . . . . Kills . | . . . . Allies Corrupted . | . . . . Allies Melted . | . . . . Intel | -11 -10 -10 -10 ------- Run | Yrd Mat Min Sub Robot Analysis Total 4 | . 4 . . Derelict Logs Recovered 1 | . . 1 . Drone Launches . | . . . . Drone Recoveries . | . . . . Exploration | -11 -10 -10 -10 ------------- Run | Yrd Mat Min Sub Turns Passed 3136 | 154 1335 1501 146 Spaces Moved 1655 | 66 645 919 25 Core 5 | 5 . . . Treads 1630 | 61 625 919 25 Legs . | . . . . Wheels 20 | . 20 . . Hover . | . . . . Flight . | . . . . Fastest Speed 50 | 50 80 160 160 Average Speed 159 | 151 157 160 201 Slowest Speed 240 | 160 160 160 240 Overloaded Moves . | . . . . Propulsion Burnouts . | . . . . Robots Hopped . | . . . . Cave-ins Triggered . | . . . . Exploration Rate (%) 49 | 6 88 100 2 Regions Visited 3 Branch Regions 2 Pre-discovered Areas 1 | . . 1 . Known Exits Taken . | . . . . Unknown Exits Taken 3 | 1 1 1 . Scrap Searched 2 | . . 2 . Spaces Dug . | . . . . Terrain Destroyed . | . . . . Melee . | . . . . Projectile . | . . . . AOE . | . . . . Terrain Rammed . | . . . . Walls Destroyed . | . . . . Machines Disabled . | . . . . Actions | -11 -10 -10 -10 --------- Run | Yrd Mat Min Sub Total 1923 | 93 820 945 65 Wait 54 | . 36 13 5 Move 1652 | 65 644 918 25 Hop . | . . . . Pick Up 30 | 7 21 2 . Fast Attach 14 | 6 6 1 1 Attach 11 | 1 6 . 4 Detach 3 | . 3 . . Swap 4 | . 4 . . Drop 21 | . 16 3 2 Fire 124 | 13 82 1 28 Melee . | . . . . Ram . | . . . . Kick . | . . . . Crush 10 | 1 2 7 . Escape Stasis . | . . . . Rewire . | . . . . Trap . | . . . . Miscellaneous . | . . . . Route ------- -11/Scrapyard -10/Materials (discovered 6 exits: [*Mat x3] / *Min x2 / [*Sub]) -10/Mines (discovered 3 exits: [*Mat x2] / [*Sub]) -10/Subcaves History --------- Turn | Location | Event 16 | -11/Scrapyard | Discovered new exit (range 15) 155 | -11/Scrapyard | Entered Materials 311 | -10/Materials | Build established: Mutant 432 | -10/Materials | Discovered new exit (range 16) 517 | -10/Materials | Discovered new exit (range 15) 689 | -10/Materials | Lost 3 parts (1n2w) 692 | -10/Materials | Core integrity fell below 50% 928 | -10/Materials | Discovered new exit (range 10) 968 | -10/Materials | Discovered new exit (range 15) 1156 | -10/Materials | Discovered new exit (range 14) 1285 | -10/Materials | Discovered new exit (range 5) 1300 | -10/Materials | Repaired Lgt. Nuclear Core? 1490 | -10/Materials | Entered Mines 1512 | -10/Mines | Met a Derelict shopkeep closing up shop 2031 | -10/Mines | Discovered new exit (range 13) 2063 | -10/Mines | Learned Materials stockpile data 2133 | -10/Mines | Discovered new exit (range 10) 2138 | -10/Mines | Learned location of Storage (-7) 2982 | -10/Mines | Discovered new exit (range 6) 2991 | -10/Mines | Entered Subcaves 3005 | -10/Subcaves | Shifting Twisted Machinery released Scrap Shield 3007 | -10/Subcaves | Shifting Twisted Machinery released Sub. Monowheel 3086 | -10/Subcaves | Core integrity fell below 20% 3136 | -10/Subcaves | Lost 4 parts (1p1n2u) 3137 | -10/Subcaves | Destroyed by 8X-CY1(R) with Subdweller Machine Gun Last Messages --------------- 02588_ Slammed into U-05 Engineer. 02636_ Slammed into K-01 Serf. 02798_ K-01 Serf collects debris. 02982_ EXIT=FOUND LOCATION=UNKNOWN AMBIENT_HEAT=-10 GOAL=ESCAPE Scrap Shield falls loose from the Twisted Machinery. Sub. Monowheel falls loose from the Twisted Machinery. 03045_ Med. Armor Plating destroyed. 03057_ Lgt. Ion Engine destroyed. 03077_ Med. Armor Plating destroyed. 03103_ U7-7PK(R) knocked back. 03105_ Lgt. Treads destroyed. 03106_ U7-7PK(R) destroyed. 03115_ Acquired 5 matter. 03116_ Subatomizers dissect the Disposable Heat Sink. 03135_ Dropped Lrg. Storage Unit. 03135_ Dropped Med. Armor Plating. 03136_ Acquired Scrap Shield. Map ----- +----------------------------------------------------+ | ?????????????????????????????????????????????????? | | ?????????????????????????????????????????????????? | | ?????????????????????????????????????????????????? | | ?????????????????????????????????????????????????? | | ?????????????????????????????????????????????????? | | ?????????????????????????????????????????????????? | | ?????????????????????????????????????????????????? | | ?????????????????????????????????????????????????? | | ?????????????????????????????????????????????????? | | ?????????????????????????????????????????????????? | | ???????????????????????????????????????#?????????? | | ??????????????????????????????????????# #???????? | | ????????????????????????????????????## #??????? | | ????????????????????????????? ??????# ???????? | | ????????????????????????????? ???### ???????? | | ???????????????????????????? ??? # ????????? | | ???????????????????????????? ???? ????????? | | ???????????????????????????? "???? #????????? | | ????????????????????????????#""????# ?????????? | | ????????????????????????????# ##???? ?????????? | | ??????????????????????###??## #???? #?????????? | | ?????????????????????## "### #?????# ##????????? | | ?????????????????????# """""#####?# ##???????? | | ?????????????????????# ??#" " ## ### ##??????? | | ????????????????????## =##R ! ##?????? | | ????????????????????# ""@"!### #?????? | | ????????????????????###"]!=##?####### #?????? | | ??????????????????????##][*#????????## ##?????? | | ???????????????????????# [# ?????????## ##??????? | | ??????????????????????" ""# ?????????####???????? | | ?????????????????????" """" ???????????????????? | | ???????????????????? ##""" #???????????????????? | | ??????????????????? #?##""?##???????????????????? | | ??????????????????# "???###??????????????????????? | | ?????????????????# ?????????????????????????????? | | ?????????????????# ??????????????????????????????? | | ?????????????????#???????????????????????????????? | | ?????????????????????????????????????????????????? | | ?????????????????????????????????????????????????? | | ?????????????????????????????????????????????????? | | ?????????????????????????????????????????????????? | | ?????????????????????????????????????????????????? | | ?????????????????????????????????????????????????? | | ?????????????????????????????????????????????????? | | ?????????????????????????????????????????????????? | | ?????????????????????????????????????????????????? | | ?????????????????????????????????????????????????? | | ?????????????????????????????????????????????????? | | ?????????????????????????????????????????????????? | | ?????????????????????????????????????????????????? | +----------------------------------------------------+ Best States ------------- Heat Dissipation 25 Energy Generation 14 Energy Capacity 250 Matter Stores 300 Matter Capacity 300 Sight Range 16 Terrain Scan Range 16 Terrain Scan Density 10 Armor Coverage 225 Evasion (%) 50 Recoil Reduction 2 Item Schematics ----------------- Huge Storage Unit | -10/Materials | Hacked Robot Schematics ------------------ None Fabricated ------------ Nothing Alien Tech Used ----------------- None Achievements -------------- None Challenges ------------ None Game ------ Seed MobilePhysicsRegenerator Manual? 0 Play Time 00:17:32 Cumulative 78.5 hours Start 2024.08.08 @ 11:36:57 End 2024.08.08 @ 11:53:49 Sessions 1 Manual Loads 0 Difficulty Rogue Special Mode None Game No. 39 Rogue 39 Adventurer 0 Explorer 0 Win Type - Total 3 Types 1/0/0/2/0/0/0/0/0 Lore% 34 Gallery% 60 Achievement% 52 Wizard Run 0 Options --------- Layout 0 ASCII 0 Keyboard 0 Movement Numpad Keybinds 0 Fullscreen 1 Font 18/X11 Map View 76x50 Zoom Use 0% Tactical HUD 1 Map Filters NONE Filters NONE Steam 1 RUN: cca57158-9d3a-47e3-b30b-f69bdea63406